bitfinex/quotes_ETHUSD_20220305
["timestamp","ask_amount","ask_price","bid_price","bid_amount"]
[1646473744828,1.51803326,2649.7,2649.6,0.07735002]
[1646473745429,1.51803326,2649.7,2649.5,0.77117414]
[1646473745630,1.51803326,2649.7,2649.6,0.07735002]
[1646473746130,1.51803326,2649.7,2649.5,0.77117414]
[1646473746383,1.51803326,2649.7,2649.6,0.07735002]
[1646473746786,1.51803326,2649.7,2649.5,0.07735002]
[1646473746989,1.51803326,2649.7,2649.6,0.07735002]
[1646473747385,1.51803326,2649.7,2649.5,0.07735002]
[1646473747589,1.51803326,2649.7,2649.6,0.07735002]
[1646473747787,1.51803326,2649.7,2649.5,0.07735002]
[1646473748089,1.51803326,2649.7,2649.6,0.07735002]
[1646473748687,1.51803326,2649.7,2649.3,0.77117414]
[1646473748889,1.51803326,2649.7,2649.4,0.08004836]
[1646473749187,1.51803326,2649.7,2649.4,0.69652246]
[1646473749788,1.51803326,2649.7,2649.4,0.69382412]
[1646473750031,1.51803326,2649.7,2649.4,0.6965224]
[1646473750233,0.24174855,2649.8,2649.5,3.9]
[1646473750430,0.92364017,2650.5,2649.7,5.39382412]
[1646473750431,0.69214946,2650.5,2649.7,5.39382412]
[1646473750631,0.69214946,2650.7,2649.9,0.69382412]
[1646473750830,0.01584784,2650.9,2650.0,0.69382412]
[1646473750831,0.69214946,2650.8,2650.0,0.69382412]
[1646473751635,0.01584784,2650.9,2650.0,0.69382412]
[1646473751636,0.7079973,2650.9,2650.1,1.20581871]
[1646473752937,0.69214946,2650.8,2650.2,3.5]
[1646473753138,0.7079973,2650.9,2650.2,3.5]
[1646473753337,0.7079973,2650.9,2650.1,1.65781871]
[1646473753538,0.69214946,2650.8,2650.1,1.65781871]
[1646473754878,0.69214946,2650.8,2650.1,0.452]
[1646473755278,0.69214946,2650.7,2650.1,0.452]
[1646473757936,1.92142677,2650.7,2650.1,0.452]
[1646473758137,1.87142677,2650.7,2650.1,0.452]
[1646473758735,1.87142677,2650.7,2649.8,3.5029421]
[1646473758935,1.87142677,2650.7,2649.8,0.0029421]
[1646473760241,0.9864,2650.6,2649.8,0.0029421]
[1646473760841,0.9864,2650.6,2649.8,3.5029421]
[1646473761139,0.9864,2650.6,2649.8,4.5029421]
[1646473761388,0.9864,2650.6,2649.8,1.57459706]
[1646473761685,0.9864,2650.6,2649.8,0.57459706]
[1646473761884,0.9864,2650.6,2649.8,0.0029421]
[1646473762284,0.9864,2650.6,2649.8,3.5029421]
[1646473762484,0.9864,2650.6,2649.8,4.5029421]
[1646473763686,0.9864,2650.6,2649.8,1.0029421]
[1646473763886,0.9864,2650.6,2649.8,0.0029421]
[1646473765434,1.22927731,2650.7,2649.8,0.0029421]
[1646473767040,1.22927731,2650.7,2649.8,3.5029421]
[1646473767341,1.22927731,2650.7,2649.8,0.0029421]
[1646473767939,1.22927731,2650.7,2649.8,3.5029421]
[1646473768141,0.69392775,2650.6,2649.8,3.5029421]
[1646473768794,0.69392775,2650.6,2649.8,0.0029421]
[1646473769588,5.42862596,2651.2,2649.8,0.0029421]
[1646473769589,1.22326524,2651.0,2649.8,3.5029421]
[1646473770389,1.22326524,2651.0,2649.9,0.11958751]
[1646473770390,1.42225902,2650.9,2649.9,0.11958751]
[1646473774242,0.91418653,2650.6,2649.9,0.11958751]
[1646473774446,1.42225902,2650.5,2650.0,0.11958751]
[1646473774640,1.42225902,2650.5,2649.8,0.0029421]
[1646473774641,1.42225902,2650.5,2650.1,0.11958751]
[1646473775043,1.42225902,2650.5,2650.2,0.119563]
[1646473775341,0.2205422,2650.0,2649.8,0.0029421]
[1646473775542,1.42225902,2649.9,2649.8,0.11955394]
[1646473775941,1.42225902,2649.9,2649.7,0.11955394]
[1646473776145,1.42225902,2649.9,2649.8,0.11955394]
[1646473776589,1.42225902,2649.9,2649.7,0.11955394]
[1646473776786,1.42225902,2649.9,2649.8,0.11955394]
[1646473777188,1.02191902,2649.9,2649.8,0.11955394]
[1646473778587,1.02191902,2649.9,2649.8,3.61955394]
[1646473778791,0.2205422,2650.0,2649.8,4.61955394]
[1646473778987,0.2205422,2650.0,2649.8,4.5]
[1646473779187,0.2205422,2650.0,2649.9,3.5]
[1646473780233,0.2205422,2650.0,2649.9,4.5]
[1646473780428,0.2205422,2650.0,2649.7,5.1919627]
[1646473780628,0.2205422,2650.0,2649.7,3.5]
[1646473780828,2e-07,2650.0,2649.8,0.452]
[1646473781029,2e-07,2650.0,2649.9,3.5]
[1646473781230,2e-07,2650.0,2649.9,3.952]
[1646473781435,2e-07,2650.0,2649.9,4.952]
[1646473782033,2e-07,2650.0,2649.9,1.452]
[1646473782232,2e-07,2650.0,2649.9,3.952]
[1646473782434,2e-07,2650.0,2649.9,4.952]
[1646473782832,2e-07,2650.0,2649.9,1.452]
[1646473783232,2e-07,2650.0,2649.9,0.452]
[1646473783433,2e-07,2650.0,2649.9,3.952]
[1646473783881,2e-07,2650.0,2649.9,4.952]
[1646473784682,2e-07,2650.0,2649.9,1.452]
[1646473785097,2e-07,2650.0,2649.9,0.452]
[1646473785888,2e-07,2650.0,2649.8,2.1356]
[1646473786186,2e-07,2650.0,2649.8,1.1356]
[1646473788632,2e-07,2650.0,2649.8,1.8275627]
[1646473789031,2e-07,2650.0,2649.8,1.1356]
[1646473789433,2e-07,2650.0,2649.8,1.8275627]
[1646473790134,2e-07,2650.0,2649.8,1.1356]
[1646473793592,2e-07,2650.0,2649.8,1.8275627]
[1646473797239,2e-07,2650.0,2649.9,0.13111404]
[1646473800693,2e-07,2650.0,2649.8,0.13111404]
[1646473800896,2e-07,2650.0,2649.8,1.52693034]
[1646473801096,2e-07,2650.0,2649.9,0.13111404]
[1646473801695,2e-07,2650.0,2649.9,0.82307674]
[1646473802096,1.4133647,2650.0,2649.9,0.82307674]
[1646473802534,0.8792107,2650.0,2649.9,0.82307674]
[1646473802734,0.69393841,2650.6,2649.9,0.82307674]
[1646473802934,0.69393841,2650.5,2649.8,2.087779]
[1646473803133,1.86874386,2650.8,2649.9,2.8]
[1646473803334,1.86874386,2650.8,2649.9,3.8]
[1646473803535,5.36874386,2650.8,2649.9,1.0]
[1646473803738,5.36874386,2650.8,2649.8,0.452]
[1646473804238,0.92517245,2650.7,2649.8,0.452]
[1646473804438,3.5,2650.6,2649.8,0.452]
[1646473804639,4.42517245,2650.6,2649.8,0.452]
[1646473805039,4.42517245,2650.6,2649.7,1.3629]
[1646473805439,1.22483558,2650.5,2649.7,1.1744]
[1646473805840,2.15000803,2650.5,2649.7,1.1744]
[1646473808191,0.92517245,2650.5,2649.7,1.1744]
[1646473808389,0.92517245,2650.6,2649.7,1.1744]
[1646473808991,0.92517245,2650.7,2649.7,1.6264]
[1646473809291,5.36874386,2650.8,2649.9,1.08056118]
[1646473809590,1.86874386,2650.8,2649.9,1.08056118]
[1646473810039,0.94357141,2650.8,2649.9,1.08056118]
[1646473810441,1.86874386,2650.8,2649.9,1.08056118]
[1646473811446,0.94357141,2650.8,2649.9,1.08056118]
[1646473811648,0.94357141,2650.8,2649.9,2.02435168]
[1646473811848,4.63007245,2651.1,2650.0,0.452]
[1646473812047,4.63007245,2651.1,2650.0,1.6681]
[1646473812248,3.7049,2651.1,2650.0,1.6681]
[1646473812750,4.63007245,2651.1,2650.0,1.6681]
[1646473813148,0.69469353,2650.8,2650.0,2.36060162]
[1646473813796,0.69469353,2650.8,2650.0,1.6681]
[1646473814183,0.69469353,2650.8,2650.0,2.36060162]
[1646473814384,0.69469353,2650.8,2650.0,1.6681]
[1646473817391,0.69469353,2650.7,2650.0,1.6681]
[1646473817632,0.69469353,2650.6,2650.0,1.6681]
[1646473822587,0.69469353,2650.6,2650.1,0.15388748]
[1646473823689,2.08419489,2650.5,2650.1,0.15388748]
[1646473823888,1.38950136,2650.4,2650.1,0.15388748]
[1646473824089,1.38950136,2650.3,2650.1,0.15388748]
[1646473824290,0.69469353,2650.5,2650.2,0.15388748]
[1646473824590,0.69469353,2650.5,2650.3,0.1539092]
[1646473824790,0.0012409,2650.3,2649.7,3.08835782]
[1646473825034,0.0012409,2650.3,2649.8,0.15391413]
[1646473825234,0.0012409,2650.3,2649.8,0.60591413]
[1646473825435,0.0012409,2650.3,2649.9,0.15391413]
[1646473829285,0.0012409,2650.3,2650.0,0.15391413]
[1646473829487,1.39082995,2650.3,2650.1,0.15391413]
[1646473829686,0.0012409,2650.3,2650.2,0.15391413]
[1646473829886,0.00010746,2650.3,2650.2,0.15391413]
[1646473830088,0.00010746,2650.3,2650.1,0.15391413]
[1646473830286,0.00010746,2650.3,2650.2,0.15391413]
[1646473830689,0.00010746,2650.3,2650.1,0.15391413]
[1646473830889,0.00010746,2650.3,2650.2,0.15391413]
[1646473831095,0.00010746,2650.3,2649.9,0.15391413]
[1646473831394,0.00010746,2650.3,2650.0,0.60591413]
[1646473831596,0.00010746,2650.3,2650.1,0.15391413]
[1646473832836,0.00010746,2650.3,2650.2,0.15391413]
[1646473833038,0.00010746,2650.3,2649.9,0.15391413]
[1646473833239,0.00010746,2650.3,2649.8,1.14450162]
[1646473833441,0.00010746,2650.3,2649.9,0.15390471]
[1646473833642,0.00010746,2650.3,2649.9,0.60590471]
[1646473833839,0.00010746,2650.3,2650.0,0.15390471]
[1646473838593,0.00010746,2650.3,2650.1,0.60590471]
[1646473838799,0.00010746,2650.3,2650.2,0.15390471]
[1646473838999,0.00010746,2650.3,2650.2,1.29840633]
[1646473839194,0.00010746,2650.3,2650.2,12.80840633]
[1646473839594,0.00010746,2650.3,2650.2,12.11590471]
[1646473839794,0.00010746,2650.3,2650.2,13.11590471]
[1646473840651,0.00010746,2650.3,2650.2,13.30440471]
[1646473841051,0.00010746,2650.3,2650.2,16.80440471]
[1646473841457,0.00010746,2650.3,2650.2,17.72704971]
[1646473841955,1.38883236,2651.1,2650.3,4.70069254]
[1646473842154,1.38883236,2651.1,2650.6,0.9434764]
[1646473842356,1.38883236,2651.1,2650.7,3.952]
[1646473842557,1.38883236,2651.0,2650.8,0.15390471]
[1646473842855,1.38883236,2650.9,2650.8,0.60590471]
[1646473843055,1.38883236,2650.9,2650.8,4.10590471]
[1646473843255,0.00581088,2651.2,2650.8,5.10590471]
[1646473843256,1.38883236,2651.1,2650.8,5.10590471]
[1646473843455,1.38883236,2651.1,2650.9,0.15390471]
[1646473843656,0.0182198,2651.3,2650.9,1.09734811]
[1646473843889,1.3867769,2651.2,2651.0,3.65390471]
[1646473844091,1.3867769,2651.2,2650.9,0.9434434]
[1646473844092,1.3867769,2651.2,2651.1,0.15390471]
[1646473844291,0.8863519,2651.2,2650.9,0.9434434]
[1646473844490,0.8863519,2651.2,2650.9,4.4434434]
[1646473844690,0.8863519,2651.2,2650.9,5.4434434]
[1646473845090,0.8863519,2651.2,2650.9,1.9434434]
[1646473845390,0.0182198,2651.3,2650.8,0.452]
[1646473846193,0.70544858,2651.6,2650.8,0.452]
[1646473846995,0.70544858,2651.6,2650.9,3.5]
[1646473847197,1.92295353,2651.7,2650.9,3.5]
[1646473847541,1.92295353,2651.7,2650.9,4.5]
[1646473847943,1.92295353,2651.7,2650.9,2.10321113]
[1646473848141,0.69469353,2651.6,2650.9,1.0]
[1646473848342,0.69469353,2651.6,2650.8,0.452]
[1646473849343,1.92295353,2651.7,2650.8,0.452]
[1646473849543,0.97306581,2651.6,2650.8,0.452]
[1646473850645,1.92295353,2651.7,2650.9,3.5]
[1646473850845,1.92295353,2651.7,2650.9,4.5]
[1646473851046,0.00290653,2651.5,2650.9,4.5]
[1646473851894,1.92295353,2651.7,2650.9,4.5]
[1646473852094,1.92295353,2651.7,2651.0,1.19103889]
[1646473852294,0.00290653,2651.5,2651.0,1.19103889]
[1646473853097,0.69565353,2651.7,2651.0,1.19103889]
[1646473853296,0.00290656,2651.5,2651.0,1.19103889]
[1646473854299,0.69565353,2651.7,2651.0,1.19103889]
[1646473854499,0.00281064,2651.5,2651.0,1.19103889]
[1646473855135,0.00281064,2651.5,2650.9,4.5]
[1646473855539,0.69565353,2651.7,2650.9,4.5]
[1646473855736,0.00281061,2651.5,2650.9,1.0]
[1646473856137,0.00281061,2651.5,2650.7,6.0839903]
[1646473856339,0.00281061,2651.5,2650.7,7.2894588]
[1646473856842,0.69565353,2651.7,2650.7,7.2894588]
[1646473857040,0.00281055,2651.5,2650.7,7.2894588]
[1646473857940,0.69565353,2651.7,2650.7,7.2894588]
[1646473858139,0.00268731,2651.5,2650.7,7.2894588]
[1646473859188,0.69565353,2651.7,2650.7,7.2894588]
[1646473859391,0.00268731,2651.5,2650.7,7.2894588]
[1646473860288,0.69565353,2651.7,2650.7,7.2894588]
[1646473860489,0.00268731,2651.5,2650.7,1.5839903]
[1646473860690,0.00268731,2651.5,2650.7,0.1885]
[1646473860991,0.69738084,2651.5,2650.7,0.1885]
[1646473861594,0.69469353,2651.5,2650.7,0.1885]
[1646473861798,0.69739437,2651.5,2650.7,0.1885]
[1646473862737,0.69469353,2651.5,2650.7,0.1885]
[1646473862938,0.69739437,2651.5,2650.7,0.1885]
[1646473863941,0.69469353,2651.5,2650.7,0.1885]
[1646473864140,0.69739437,2651.5,2650.7,0.1885]
[1646473864343,0.00270084,2651.5,2650.8,0.9434561]
[1646473864741,0.00270084,2651.5,2650.9,3.5]
[1646473864941,0.00270084,2651.5,2650.9,3.952]
[1646473865142,0.01176294,2651.6,2650.9,4.952]
[1646473865143,0.00096,2651.6,2650.9,4.952]
[1646473865443,0.00166576,2651.5,2651.0,0.17567451]
[1646473865642,1.36181738,2651.5,2651.2,1.13871129]
[1646473865842,1.36015162,2651.4,2651.2,1.13871129]
[1646473866042,0.00166576,2651.5,2651.2,1.13871129]
[1646473866287,0.00096,2651.9,2651.2,1.13871129]
[1646473866288,1.35913743,2651.6,2651.2,1.13871129]
[1646473866490,1.35913743,2651.5,2651.2,1.13871129]
[1646473866694,1.35913743,2651.4,2651.2,1.13871129]
[1646473866891,1.35913743,2651.3,2651.2,1.13871129]
[1646473867094,0.00166583,2651.5,2651.2,1.31488592]
[1646473867293,0.00166583,2651.5,2651.2,1.13871129]
[1646473867491,1.35913743,2651.5,2651.2,1.13871129]
[1646473867692,0.00096,2651.9,2651.2,1.13871129]
[1646473867693,1.35913743,2651.4,2651.2,1.13871129]
[1646473867892,1.35913743,2651.3,2651.2,1.13871129]
[1646473868295,0.00290591,2651.5,2651.2,1.13871129]
[1646473868694,1.35913743,2651.6,2651.2,1.13871129]
[1646473868895,1.35913743,2651.5,2651.2,1.13871129]
[1646473869094,1.35913743,2651.4,2651.2,1.13871129]
[1646473869294,1.35913743,2651.3,2651.2,1.13871129]
[1646473869495,1.35913743,2651.3,2651.2,1.31474983]
[1646473869698,0.00290591,2651.5,2651.2,1.31474983]
[1646473869895,0.00290591,2651.5,2651.2,1.13871129]
[1646473870141,0.00290585,2651.5,2651.2,1.13871129]
[1646473870342,1.36204328,2651.5,2651.2,1.13871129]
[1646473870540,1.35913743,2651.4,2651.2,1.13871129]
[1646473870739,1.35913743,2651.3,2651.2,1.13871129]
[1646473870939,0.00290585,2651.5,2651.2,1.31474728]
[1646473871139,1.35913743,2651.6,2651.2,1.13871129]
[1646473871344,1.36204328,2651.5,2651.2,1.13871129]
[1646473871543,1.35913743,2651.4,2651.2,1.13871129]
[1646473871743,1.35913743,2651.3,2651.2,1.13871129]
[1646473871943,1.35913743,2651.3,2651.2,1.31468263]
[1646473872143,0.00290585,2651.5,2651.2,1.31468263]
[1646473872346,1.35913743,2651.6,2651.2,1.13871129]
[1646473872543,0.69469353,2652.0,2651.2,1.13871129]
[1646473872544,1.3619561,2651.5,2651.2,1.13871129]
[1646473872743,1.35913743,2651.4,2651.2,1.13871129]
[1646473872944,0.00281867,2651.5,2651.3,0.17596658]
[1646473873546,1.35971728,2651.7,2651.3,0.17596658]
[1646473873806,0.00281877,2651.5,2651.3,0.17596658]
[1646473873993,1.36253605,2651.5,2651.3,0.17596658]
[1646473874192,0.00281877,2651.5,2651.3,0.17596658]
[1646473874794,1.36044785,2651.8,2651.2,0.17596658]
[1646473874998,1.35948785,2651.7,2651.0,1.176]
[1646473875193,0.00281877,2651.5,2651.1,0.1759847]
[1646473875993,1.36044785,2651.8,2651.1,0.1759847]
[1646473876402,0.00268891,2651.5,2651.1,0.1759847]
[1646473877098,1.35948785,2651.7,2651.1,0.1759847]
[1646473877546,0.00268891,2651.5,2651.1,0.1759847]
[1646473878343,1.35948785,2651.7,2651.1,0.1759847]
[1646473878544,0.00268891,2651.5,2651.1,0.1759847]
[1646473878745,0.00161047,2651.5,2651.1,0.1759847]
[1646473879546,1.35948785,2651.7,2651.1,0.1759847]
[1646473879746,1.35948785,2651.6,2651.1,0.1759847]
[1646473879945,1.35948785,2651.5,2651.1,0.1759847]
[1646473880147,1.35948785,2651.4,2651.1,0.1759847]
[1646473880345,1.35948785,2651.3,2651.2,1.11065442]
[1646473880546,0.69565353,2651.8,2651.2,1.11065442]
[1646473880547,0.69565353,2651.8,2651.2,1.28663912]
[1646473880746,0.69565353,2651.8,2651.3,0.1761826]
[1646473880947,2.05418138,2651.8,2651.2,0.79882104]
[1646473881149,0.00166576,2651.6,2651.3,0.18197104]
[1646473881394,1.36115361,2651.6,2651.3,0.18197104]
[1646473881597,1.35948785,2651.5,2651.3,0.18197104]
[1646473882095,1.35948785,2651.4,2651.3,0.18197104]
[1646473882495,0.69635939,2651.6,2651.1,0.18197104]
[1646473882700,0.69731939,2651.6,2651.2,0.18197104]
[1646473882895,2.05584724,2651.6,2651.3,0.18197104]
[1646473883095,1.35948785,2651.5,2651.4,0.18197104]
[1646473883298,0.69469353,2651.6,2651.4,0.18197104]
[1646473883495,0.69759942,2651.6,2651.0,1.1796]
[1646473883696,0.69759942,2651.6,2651.1,0.18220974]
[1646473884295,0.69469353,2651.6,2651.1,0.18220974]
[1646473884696,0.69759938,2651.6,2651.1,0.18220974]
[1646473885541,0.64469353,2651.6,2651.1,0.18220974]
[1646473885740,0.64759938,2651.6,2651.1,0.18220974]
[1646473886240,2.00708723,2651.6,2651.1,3.68220974]
[1646473886446,1.35948785,2651.5,2651.2,0.18220974]
[1646473886644,1.35948785,2651.5,2651.0,1.1796]
[1646473886645,1.35948785,2651.5,2651.3,0.18220974]
[1646473886848,1.35948785,2651.5,2651.4,0.18220974]
[1646473887046,0.64759938,2651.6,2651.4,0.18220974]
[1646473887246,0.64759938,2651.6,2651.5,0.18220974]
[1646473887647,2.00708723,2651.6,2651.5,0.18220974]
[1646473888145,2.00418138,2651.6,2651.1,0.18220974]
[1646473888346,1.35948785,2651.5,2651.2,0.18220974]
[1646473888548,1.35948785,2651.4,2651.3,0.18220974]
[1646473888806,2.00418138,2651.6,2651.1,0.18220974]
[1646473888999,1.35948785,2651.5,2651.2,0.18220974]
[1646473889199,1.35948785,2651.4,2651.3,0.18220974]
[1646473889399,0.64751221,2651.6,2651.1,0.18220974]
[1646473889598,0.64847221,2651.6,2651.1,0.18220974]
[1646473889799,1.35948785,2651.5,2651.1,0.18220974]
[1646473890700,1.35948785,2651.4,2651.1,0.18220974]
[1646473890901,1.35948785,2651.3,2651.1,0.18220974]
[1646473891101,0.64847218,2651.6,2651.2,0.18220974]
[1646473891309,1.35856951,2651.5,2651.3,0.18220974]
[1646473891505,1.35856951,2651.4,2650.8,1.0]
[1646473891707,1.35856951,2651.3,2650.9,0.18335337]
[1646473891906,1.35856951,2651.2,2651.0,0.18335337]
[1646473892105,0.64739083,2651.6,2651.1,0.18335337]
[1646473892305,2.00600832,2651.6,2651.2,0.18335337]
[1646473892542,2.00600832,2651.6,2651.3,0.18335337]
[1646473892743,1.35861749,2651.5,2651.4,0.18335337]
[1646473893245,0.64739083,2651.6,2650.7,0.18335337]
[1646473893443,0.64835083,2651.6,2650.8,0.18335337]
[1646473893644,1.35861749,2651.5,2650.9,0.18335337]
[1646473893945,1.35861749,2651.5,2651.0,0.18335337]
[1646473894148,1.35861749,2651.4,2651.1,0.18335337]
[1646473894350,1.35861749,2651.3,2651.2,0.18335337]
[1646473894948,1.36131467,2651.6,2650.7,0.18335337]
[1646473895149,1.35861749,2651.5,2650.8,0.18335337]
[1646473895349,2.52454577,2651.4,2650.9,0.18335337]
[1646473895554,3.68373045,2651.3,2651.0,0.18335337]
[1646473895752,3.68373045,2651.3,2650.4,0.1885]
[1646473895753,1.35861749,2651.2,2650.4,0.1885]
[1646473895950,0.69444382,2650.9,2650.5,0.13407583]
[1646473896150,2.05306131,2650.8,2650.5,0.13407583]
[1646473896397,1.35861749,2650.7,2650.5,0.13407583]
[1646473896599,1.35861749,2650.6,2650.5,0.13407583]
[1646473896797,0.69444382,2650.9,2650.5,0.13407583]
[1646473896998,0.69444382,2651.0,2650.5,0.13407583]
[1646473897198,1.60973037,2651.0,2650.6,0.13407583]
[1646473897396,1.35861749,2650.9,2650.3,7.47]
[1646473897597,1.35861749,2650.9,2650.4,0.1339706]
[1646473898796,1.35861749,2650.8,2650.4,0.1339706]
[1646473898996,1.35861749,2650.7,2650.4,0.1339706]
[1646473899196,1.35861749,2650.6,2650.4,0.1339706]
[1646473899397,1.35861749,2650.5,2650.4,0.1339706]
[1646473899596,0.69444382,2651.0,2650.4,0.1339706]
[1646473899796,0.69444382,2651.1,2650.4,0.1339706]
[1646473900043,2.05306131,2651.2,2650.4,1.11895005]
[1646473900245,1.35861749,2651.1,2650.5,0.1339706]
[1646473900447,1.35861749,2651.0,2650.5,0.1339706]
[1646473900644,1.35861749,2650.9,2650.5,0.1339706]
[1646473900849,1.35861749,2650.8,2650.5,0.1339706]
[1646473901043,0.01080905,2651.2,2650.5,0.1339706]
[1646473901244,1.40568074,2651.1,2650.5,0.1339706]
[1646473901447,1.40568074,2651.0,2650.5,0.1339706]
[1646473901647,1.40568074,2650.9,2650.5,0.1339706]
[1646473901948,1.40568074,2650.8,2650.5,0.1339706]
[1646473902148,0.01080893,2651.2,2650.5,1.0775643]
[1646473902347,1.40566566,2651.1,2650.6,0.1339706]
[1646473902749,1.40566566,2651.0,2650.7,0.1339706]
[1646473902948,0.01080867,2651.2,2650.4,6.96054711]
[1646473902949,1.40566566,2650.9,2650.4,6.96054711]
[1646473903149,1.40566566,2650.8,2650.5,0.13399367]
[1646473903353,1.40566566,2650.7,2650.5,0.13399367]
[1646473903551,3.18204382,2651.3,2650.5,0.13399367]
[1646473903798,2.09978025,2651.2,2650.5,0.13399367]
[1646473904087,2.11058892,2651.2,2650.5,0.13399367]
[1646473904288,1.40533643,2651.1,2650.5,0.13399367]
[1646473905192,0.69444382,2651.2,2650.5,0.13399367]
[1646473905193,1.40533643,2651.0,2650.5,0.13399367]
[1646473905390,1.40533643,2650.9,2650.5,0.13399367]
[1646473905590,1.40533643,2650.8,2650.5,0.13399367]
[1646473905789,3.19285246,2651.3,2650.5,0.13399367]
[1646473905992,1.40534633,2651.2,2650.5,0.13399367]
[1646473906419,1.41615503,2651.2,2650.5,0.13399367]
[1646473906595,1.40534633,2651.1,2650.5,0.13399367]
[1646473907395,1.40534633,2651.0,2650.5,0.13399367]
[1646473907639,1.40534633,2650.9,2650.5,0.13399367]
[1646473907840,1.40534633,2650.8,2650.5,0.13399367]
[1646473908040,1.40534633,2650.7,2650.5,0.13399367]
[1646473908242,3.19285249,2651.3,2650.7,0.24544698]
[1646473908441,2.09979562,2651.2,2650.8,0.13399367]
[1646473908644,2.1106042,2651.2,2650.7,0.24544698]
[1646473908841,1.4053518,2651.1,2650.7,0.24544698]
[1646473909340,2.09979562,2651.1,2650.7,0.24544698]
[1646473909742,2.09979562,2651.1,2650.7,0.24438731]
[1646473910042,1.4053518,2651.0,2650.7,0.24438731]
[1646473910242,1.4053518,2650.9,2650.7,0.24438731]
[1646473910442,1.4053518,2650.8,2650.7,0.24438731]
[1646473910641,0.69444382,2651.1,2650.7,0.24438731]
[1646473911042,2.09979562,2651.2,2650.7,0.24438731]
[1646473911293,1.4053518,2651.0,2650.7,0.24438731]
[1646473911496,2.49840873,2651.3,2650.8,0.13391868]
[1646473911497,1.4053518,2650.9,2650.8,0.13391868]
[1646473911698,1.4053518,2651.2,2650.8,0.13391868]
[1646473911896,1.4053518,2651.1,2650.8,0.13391868]
[1646473912096,1.6193,2651.4,2650.8,0.13391868]
[1646473912097,1.4053518,2651.0,2650.8,0.13391868]
[1646473912299,2.31374382,2651.4,2650.8,0.13391868]
[1646473912300,1.4053518,2650.9,2650.8,0.13391868]
[1646473912497,1.4053518,2651.3,2650.8,0.13391868]
[1646473912898,0.69444382,2651.2,2650.7,0.24438731]
[1646473913300,2.09979562,2651.3,2650.7,0.24438731]
[1646473913498,2.09979562,2651.2,2650.7,0.24438731]
[1646473913698,1.4053518,2651.1,2650.7,0.24438731]
[1646473913901,1.4053518,2651.0,2650.7,0.24438731]
[1646473914098,0.69444382,2651.2,2650.7,0.24438731]
[1646473914099,1.4053518,2650.9,2650.7,0.24438731]
[1646473914298,1.4053518,2650.8,2650.7,0.24438731]
[1646473914698,2.09979562,2651.1,2650.7,0.24438731]
[1646473914899,1.4053518,2651.0,2650.7,0.24438731]
[1646473915139,1.4053518,2650.9,2650.7,0.24438731]
[1646473915342,1.4053518,2650.8,2650.7,0.24438731]
[1646473915540,0.69444382,2651.1,2650.7,0.24438731]
[1646473915541,2.09979562,2651.1,2650.7,0.24438731]
[1646473915741,1.4053518,2651.0,2650.7,0.24438731]
[1646473915942,1.4053518,2650.9,2650.7,0.24438731]
[1646473916143,1.4053518,2650.8,2650.7,0.24438731]
[1646473916547,2.09979562,2651.1,2650.7,0.24438731]
[1646473916747,1.4053518,2651.0,2650.7,0.24438731]
[1646473916946,1.4053518,2650.9,2650.7,0.24438731]
[1646473917146,0.69444382,2651.1,2650.7,0.24438731]
[1646473917147,1.4053518,2650.8,2650.7,0.24438731]
[1646473917345,2.09979562,2651.1,2650.7,0.24438731]
[1646473918998,0.93857055,2651.0,2650.7,0.24438731]
[1646473919200,1.4053518,2650.9,2650.7,0.24438731]
[1646473919398,0.69444382,2651.1,2650.7,0.24438731]
[1646473919399,1.4053518,2650.8,2650.7,0.24438731]
[1646473919599,2.09979562,2651.1,2650.7,0.24438731]
[1646473924949,3.09979562,2651.1,2650.7,0.24438731]
[1646473925152,1.4053518,2651.0,2650.7,0.24438731]
[1646473925750,3.19234562,2651.1,2650.7,0.24438731]
[1646473925950,1.4053518,2651.0,2650.7,0.24438731]
[1646473926802,2.09979562,2651.0,2650.7,0.24438731]
[1646473927402,5.24048022,2651.2,2650.7,0.24438731]
[1646473927403,1.4053518,2650.9,2650.7,0.24438731]
[1646473927603,1.4053518,2650.8,2650.7,0.24438731]
[1646473928104,2.09979562,2651.1,2650.7,0.24438731]
[1646473928304,1.4053518,2651.0,2650.7,0.24438731]
[1646473928506,1.4053518,2650.9,2650.7,0.24438731]
[1646473928709,1.4053518,2650.8,2650.7,0.24438731]
[1646473929508,0.69444382,2651.1,2650.7,0.37823121]
[1646473929509,1.4053518,2651.1,2650.7,0.37823121]
[1646473929705,1.4053518,2651.0,2650.7,0.24438731]
[1646473929904,5.93492404,2651.2,2650.7,0.24438731]
[1646473929905,1.4053518,2650.9,2650.7,0.24438731]
[1646473930145,1.4053518,2650.8,2650.7,0.24438731]
[1646473930349,1.4053518,2650.8,2650.7,0.37822147]
[1646473930548,1.4053518,2651.1,2650.7,0.37822147]
[1646473930749,1.4053518,2651.0,2650.8,0.1338017]
[1646473930950,1.4053518,2650.9,2650.8,0.1338017]
[1646473931749,1.4053518,2651.1,2650.8,0.1338017]
[1646473934195,1.4053518,2651.1,2650.7,0.24438731]
[1646473934196,3.5,2651.0,2650.7,0.24438731]
[1646473934395,2.09920767,2650.9,2650.7,0.24438731]
[1646473934797,2.09773317,2650.9,2650.7,0.24438731]
[1646473935994,0.69385587,2650.9,2650.7,0.24438731]
[1646473936999,0.92517245,2651.1,2650.7,0.24438731]
[1646473937000,0.69385587,2650.8,2650.7,0.24438731]
[1646473937401,0.69385587,2650.9,2650.7,0.24438731]
[1646473938845,3.5,2650.8,2650.7,0.24438731]
[1646473939246,4.42517245,2651.0,2650.7,0.24438731]
[1646473939447,0.92517245,2650.9,2650.7,0.24438731]
[1646473941052,4.38013842,2650.8,2650.7,0.24438731]
[1646473942102,5.07498692,2650.8,2650.7,0.24438731]
[1646473942302,4.38013842,2650.8,2650.7,0.24438731]
[1646473944305,5.07498692,2650.8,2650.7,0.24438731]
[1646473944505,4.38013842,2650.8,2650.7,0.24438731]
[1646473948556,5.0748431,2650.8,2650.7,0.24438731]
[1646473949398,0.69470468,2650.8,2650.7,0.24438731]
[1646473949799,0.92517245,2651.1,2650.7,0.24438731]
[1646473949800,0.69470468,2650.9,2650.7,0.24438731]
[1646473950404,0.69470468,2650.8,2650.7,0.24438731]
[1646473953150,4.42517245,2650.9,2650.7,0.24438731]
[1646473953350,0.92517245,2650.8,2650.7,0.24438731]
[1646473953750,3.5,2650.9,2650.7,0.24438731]
[1646473954550,1.38775995,2651.0,2650.7,0.24438731]
[1646473954951,2.81740368,2651.0,2650.7,0.24438731]
[1646473955351,2.81740368,2651.0,2650.7,0.24356994]
[1646473955555,0.92654225,2650.8,2650.7,0.24356994]
[1646473955954,2.35618598,2650.8,2650.7,0.24356994]
[1646473956152,1.42964373,2650.8,2650.7,0.24356994]
[1646473956405,0.92654225,2650.9,2650.7,0.24356994]
[1646473957006,0.92654225,2650.8,2650.7,0.24356994]
[1646473958311,1.42964373,2650.8,2650.7,0.24356994]